Workbook

Sheet Plan1
A1: X | B1: 0.8376194981 | D1: x | E1: f(x) | G1: Bisseção
A2: f(x) | B2: =-2*B1^6-3*B1^4+12*B1 -> 7.883945524 | D2: -11 | E2: =-2*D2^6-3*D2^4+12*D2 -> -3587177 | G2: x-tentativa | H2: f(x) | I2: novo x
D3: =D2+0.5 -> -10.5 | E3: =-2*D3^6-3*D3^4+12*D3 -> -2716782.469 | G3: 1 | H3: =-2*G3^6-3*G3^4+12*G3 -> 7
D4: =D3+0.5 -> -10 | E4: =-2*D4^6-3*D4^4+12*D4 -> -2030120 | G4: -1 | H4: =-2*G4^6-3*G4^4+12*G4 -> -17 | I4: =(G3+G4)/2 -> 0
D5: -9.5 | E5: -1494732.969 | G5: =I4 -> 0 | H5: 0 | I5: =IF(H5<H4,(G5+G4)/2,(G5+G3)/2) -> 0.5
D6: -9 | E6: -1082673 | G6: =I5 -> 0.5 | H6: 5.78125 | I6: =IF(H6<H5,(G6+G5)/2,(G6+G4)/2) -> -0.25
D7: -8.5 | E7: -770061.2188 | G7: -0.25 | H7: -3.012207031 | I7: 0.125
D8: -8 | E8: -536672 | G8: 0.125 | H8: 1.499259949 | I8: 0.3125
D9: -7.5 | E9: -365539.2188 | G9: 0.3125 | H9: 3.719527125 | I9: 0.03125
D10: -7 | E10: -242585 | G10: 0.03125 | H10: 0.3749971371 | I10: 0.171875
D11: -6.5 | E11: -156270.9688 | G11: 0.171875 | H11: 2.059830426 | I11: 0.2421875
D12: -6 | E12: -97272 | G12: 0.2421875 | H12: 2.895525259 | I12: 0.13671875
D13: -5.5 | E13: -58172.46875 | G13: 0.13671875 | H13: 1.639563764 | I13: 0.189453125
D14: -5 | E14: -33185 | G14: 0.189453125 | H14: 2.26948021 | I14: 0.2158203125
D15: -4.5 | E15: -17891.71875 | G15: 0.2158203125 | H15: 2.583132998 | I15: 0.1762695312
D16: -4 | E16: -9008 | G16: 0.1762695312 | H16: 2.112278172 | I16: 0.1960449219
D17: -3.5 | E17: -4168.71875 | G17: 0.1960449219 | H17: 2.347994091 | I17: 0.2059326172
D18: =D17+0.5 -> -3 | E18: -1737 | G18: 0.2059326172 | H18: 2.46564349 | I18: 0.1911010742
D19: -2.5 | E19: -635.46875 | G19: 0.1911010742 | H19: 2.289114431 | I19: 0.1985168457
D20: -2 | E20: -200 | G20: 0.1985168457 | H20: 2.377420546 | I20: 0.2022247314
D21: -1.5 | E21: -55.96875 | G21: 0.2022247314 | H21: 2.421542829 | I21: 0.1966629028
D22: -1 | E22: -17 | G22: 0.1966629028 | H22: 2.355351558 | I22: 0.1994438171
D23: -0.5 | E23: -6.21875 | G23: 0.1994438171 | H23: 2.388453098 | I23: 0.2008342743
D24: 0 | E24: 0 | G24: 0.2008342743 | H24: 2.404999461 | I24: 0.1987485886
D25: 0.5 | E25: 5.78125 | G25: 0.1987485886 | H25: 2.380178806 | I25: 0.1997914314
D26: 1 | E26: 7 | G26: 0.1997914314 | H26: 2.392589967 | I26: 0.2003128529
D27: 1.5 | E27: -19.96875 | G27: 0.2003128529 | H27: 2.398794924 | I27: 0.1995307207
D28: 2 | E28: -152 | G28: 0.1995307207 | H28: 2.389487333 | I28: 0.1999217868
D29: 2.5 | E29: -575.46875 | G29: 0.1999217868 | H29: 2.394141246 | I29: 0.2001173198
D30: 3 | E30: -1665 | G30: 0.2001173198 | H30: 2.396468114 | I30: 0.1998240203
D31: 3.5 | E31: -4084.71875 | G31: 0.1998240203 | H31: 2.392977789 | I31: 0.19997067
D32: 4 | E32: -8912 | G32: 0.19997067 | H32: 2.394722968 | I32: 0.2000439949
D33: 4.5 | E33: -17783.71875 | G33: 0.2000439949 | H33: 2.395595545 | I33: 0.1999340076
D34: 5 | E34: -33065 | G34: 0.1999340076 | H34: 2.394286677 | I34: 0.1999890013
D35: 5.5 | E35: -58040.46875 | G35: 0.1999890013 | H35: 2.394941113 | I35: 0.2000164981
D36: =D35+0.5 -> 6 | E36: =-2*D36^6-3*D36^4+12*D36 -> -97128 | G36: 0.2000164981 | H36: 2.39526833 | I36: 0.1999752528
D37: =D36+0.5 -> 6.5 | E37: -156114.9688
D38: 7 | E38: -242417
D39: 7.5 | E39: -365359.2188
D40: 8 | E40: -536480
D41: 8.5 | E41: -769857.2188
D42: 9 | E42: -1082457
D43: 9.5 | E43: -1494504.969
D44: 10 | E44: -2029880
D45: 10.5 | E45: -2716530.469
D46: 11 | E46: -3586913
D47: 11.5 | E47: -4678453.719
D48: 12 | E48: -6034032
D49: 12.5 | E49: -7702486.719
D50: 13 | E50: -9739145
D51: 13.5 | E51: -12206373.47
D52: 14 | E52: -15174152
D53: 14.5 | E53: -18720669.97
D54: 15 | E54: -22932945
D55: 15.5 | E55: -27907464.22
D56: 16 | E56: -33750848
D57: 16.5 | E57: -40580536.22
D58: =D57+0.5 -> 17 | E58: =-2*D58^6-3*D58^4+12*D58 -> -48525497
D59: =D58+0.5 -> 17.5 | E59: -57726957.97
D60: 18 | E60: -68339160
D61: 18.5 | E61: -80530133.47
D62: 19 | E62: -94482497
D63: 19.5 | E63: -110394278.7
D64: 20 | E64: -128479760
D65: 20.5 | E65: -148970341.7
D66: 21 | E66: -172115433
D67: 21.5 | E67: -198183362.5
D68: 22 | E68: =-2*D68^6-3*D68^4+12*D68 -> -227462312
D69: 22.5 | E69: -260261273
D70: 23 | E70: -296911025
D71: 23.5 | E71: -337765137.2
D72: 24 | E72: -383200992
D73: 24.5 | E73: -433620831.2
D74: =D73+0.5 -> 25 | E74: =-2*D74^6-3*D74^4+12*D74 -> -489452825
D75: =D74+0.5 -> 25.5 | E75: =-2*D75^6-3*D75^4+12*D75 -> -551152163
D76: 26 | E76: -619202168
D77: 26.5 | E77: -694115432.5
D78: 27 | E78: -776434977
D79: 27.5 | E79: -866735431.7
D80: 28 | E80: -965624240
D81: 28.5 | E81: -1073742885
D82: 29 | E82: -1191768137

Sheet 1.1
A1: a | B1: (a+b)/2 | C1: b | D1: f(a) | E1: f((a+b)/2) | F1: f(b)
A2: -20 | B2: =(A2+C2)/2 -> -0.5 | C2: 19 | D2: =-2*A2^6-3*A2^4+12*A2 -> -128480240 | E2: =-2*B2^6-3*B2^4+12*B2 -> -6.21875 | F2: -94482497
A3: =IF(D2>F2,A2,B2) -> -0.5 | B3: =(A3+C3)/2 -> 9.25 | C3: =IF(F2>D2,C2,B2) -> 19 | D3: -6.21875 | E3: =-2*B3^6-3*B3^4+12*B3 -> -1274647.922 | F3: =-2*C3^6-3*C3^4+12*C3 -> -94482497
A4: -0.5 | B4: 4.375 | C4: 9.25 | D4: -6.21875 | E4: =-2*B4^6-3*B4^4+12*B4 -> -15071.44428 | F4: =-2*C4^6-3*C4^4+12*C4 -> -1274647.922
A5: -0.5 | B5: 1.9375 | C5: 4.375 | D5: -6.21875 | E5: -124.8241197 | F5: -15071.44428
A6: -0.5 | B6: 0.71875 | C6: 1.9375 | D6: -6.21875 | E6: 7.548630146 | F6: -124.8241197
A7: -0.5 | B7: 0.109375 | C7: 0.71875 | D7: -6.21875 | E7: 1.312067244 | F7: 7.548630146
A8: 0.109375 | B8: 0.4140625 | C8: 0.71875 | D8: 1.312067244 | E8: 4.870487819 | F8: 7.548630146
A9: 0.4140625 | B9: 0.56640625 | C9: 0.71875 | D9: 4.870487819 | E9: 6.422067551 | F9: 7.548630146
A10: 0.56640625 | B10: 0.642578125 | C10: 0.71875 | D10: 6.422067551 | E10: 7.058667327 | F10: 7.548630146
A11: 0.642578125 | B11: 0.6806640625 | C11: 0.71875 | D11: 7.058667327 | E11: 7.325121766 | F11: 7.548630146
A12: 0.6806640625 | B12: 0.6997070312 | C12: 0.71875 | D12: 7.325121766 | E12: 7.442681731 | F12: 7.548630146
A13: 0.6997070312 | B13: 0.7092285156 | C13: 0.71875 | D13: 7.442681731 | E13: 7.497165057 | F13: 7.548630146
A14: 0.7092285156 | B14: 0.7139892578 | C14: 0.71875 | D14: 7.497165057 | E14: =-2*B14^6-3*B14^4+12*B14 -> 7.523282283 | F14: =-2*C14^6-3*C14^4+12*C14 -> 7.548630146
A15: 0.7139892578 | B15: 0.7163696289 | C15: 0.71875 | D15: 7.523282283 | E15: 7.536053323 | F15: 7.548630146
A16: 0.7163696289 | B16: 0.7175598145 | C16: 0.71875 | D16: 7.536053323 | E16: 7.54236613 | F16: 7.548630146
A17: 0.7175598145 | B17: 0.7181549072 | C17: 0.71875 | D17: 7.54236613 | E17: 7.545504251 | F17: 7.548630146
A18: 0.7181549072 | B18: 0.7184524536 | C18: 0.71875 | D18: 7.545504251 | E18: 7.547068729 | F18: 7.548630146
A19: 0.7184524536 | B19: 0.7186012268 | C19: 0.71875 | D19: 7.547068729 | E19: 7.547849821 | F19: 7.548630146
A20: 0.7186012268 | B20: 0.7186756134 | C20: 0.71875 | D20: 7.547849821 | E20: 7.548240079 | F20: 7.548630146
A21: 0.7186756134 | B21: 0.7187128067 | C21: 0.71875 | D21: 7.548240079 | E21: 7.548435137 | F21: 7.548630146
A22: 0.7187128067 | B22: 0.7187314034 | C22: 0.71875 | D22: 7.548435137 | E22: 7.548532647 | F22: 7.548630146

Sheet 1.2
A1: a | B1: (a+b)/2 | C1: b | D1: f(a) | E1: f((a+b)/2) | F1: f(b)
A2: -20 | B2: =(A2+C2)/2 -> 0 | C2: 20 | D2: =-0.25*A2^4+A2^3-2*A2^2+2*A2 -> -48840 | E2: =-0.25*B2^4+B2^3-2*B2^2+2*B2 -> 0 | F2: -32760
A3: =IF(D2>F2,A2,B2) -> 0 | B3: =(A3+C3)/2 -> 10 | C3: =IF(F2>D2,C2,B2) -> 20 | D3: =-0.25*A3^4+A3^3-2*A3^2+2*A3 -> 0 | E3: =-0.25*B3^4+B3^3-2*B3^2+2*B3 -> -1680 | F3: =-0.25*C3^4+C3^3-2*C3^2+2*C3 -> -32760
A4: 0 | B4: 5 | C4: 10 | D4: 0 | E4: -71.25 | F4: -1680
A5: 0 | B5: 2.5 | C5: 5 | D5: 0 | E5: -1.640625 | F5: -71.25
A6: 0 | B6: 1.25 | C6: 2.5 | D6: 0 | E6: 0.7177734375 | F6: -1.640625
A7: 0 | B7: 0.625 | C7: 1.25 | D7: 0 | E7: 0.6747436523 | F7: 0.7177734375
A8: 0.625 | B8: 0.9375 | C8: 1.25 | D8: 0.6747436523 | E8: 0.7480430603 | F8: 0.7177734375
A9: 0.9375 | B9: 1.09375 | C9: 1.25 | D9: 0.7480430603 | E9: 0.7455861568 | F9: 0.7177734375
A10: 0.9375 | B10: 1.015625 | C10: 1.09375 | D10: 0.7480430603 | E10: 0.7498779148 | F10: 0.7455861568
A11: 0.9375 | B11: 0.9765625 | C11: 1.015625 | D11: 0.7480430603 | E11: 0.7497252664 | F11: 0.7498779148
A12: 0.9765625 | B12: 0.99609375 | C12: 1.015625 | D12: 0.7497252664 | E12: 0.7499923705 | F12: 0.7498779148
A13: 0.99609375 | B13: 1.005859375 | C13: 1.015625 | D13: 0.7499923705 | E13: 0.7499828336 | F13: 0.7498779148
A14: 0.99609375 | B14: 1.000976562 | C14: 1.005859375 | D14: 0.7499923705 | E14: 0.7499995232 | F14: 0.7499828336
A15: 0.99609375 | B15: 0.9985351562 | C15: 1.000976562 | D15: 0.7499923705 | E15: 0.7499989271 | F15: 0.7499995232
A16: 0.9985351562 | B16: 0.9997558594 | C16: 1.000976562 | D16: 0.7499989271 | E16: 0.7499999702 | F16: 0.7499995232
A17: 0.9997558594 | B17: 1.000366211 | C17: 1.000976562 | D17: 0.7499999702 | E17: 0.7499999329 | F17: 0.7499995232
A18: 0.9997558594 | B18: 1.000061035 | C18: 1.000366211 | D18: 0.7499999702 | E18: 0.7499999981 | F18: 0.7499999329
A19: 0.9997558594 | B19: 0.9999084473 | C19: 1.000061035 | D19: 0.7499999702 | E19: 0.7499999958 | F19: 0.7499999981
A20: 0.9999084473 | B20: 0.9999847412 | C20: 1.000061035 | D20: 0.7499999958 | E20: 0.7499999999 | F20: 0.7499999981
A21: 0.9999847412 | B21: 1.000022888 | C21: 1.000061035 | D21: 0.7499999999 | E21: 0.7499999997 | F21: 0.7499999981
A22: 0.9999847412 | B22: 1.000003815 | C22: 1.000022888 | D22: 0.7499999999 | E22: 0.75 | F22: 0.7499999997
A24: x | B24: 0.9999999922
A25: f(x) | B25: =-0.25*B24^4+B24^3-2*B24^2+2*B24 -> 0.75

Sheet tabela Lieberman 1.1
A1: f(x)=-2x^6-3x^4+12x | C1: f'(x) = -12x^5-12x^3+12
A2: Iteração | B2: df(x)/dx | C2: x inf | D2: x sup | E2: novo x | F2: f(x)
A3: 1 | C3: -15 | D3: 40 | E3: =(C3+D3)/2 -> 12.5 | F3: =-2*E3^6-3*E3^4+12*E3 -> -7702486.719
A4: 2 | B4: =-12*E3^5-12*E3^3+12 -> -3685534.875 | C4: =IF(B4>0,E3,C3) -> -15 | D4: =IF(B4<0,E3,D3) -> 12.5 | E4: =(C4+D4)/2 -> -1.25 | F4: =-2*E4^6-3*E4^4+12*E4 -> -29.95361328
A5: 3 | B5: =-12*E4^5-12*E4^3+12 -> 72.05859375 | C5: =IF(B5>0,E4,C4) -> -1.25 | D5: =IF(B5<0,E4,D4) -> 12.5 | E5: =(C5+D5)/2 -> 5.625 | F5: =-2*E5^6-3*E5^4+12*E5 -> -66288.5915
A6: 4 | B6: -69699.95984 | C6: -1.25 | D6: 5.625 | E6: 2.1875 | F6: -261.5815002
A7: 5 | B7: -714.6755104 | C7: -1.25 | D7: 2.1875 | E7: 0.46875 | F7: 5.458944021
A8: 6 | B8: 10.49246442 | C8: 0.46875 | D8: 2.1875 | E8: 1.328125 | F8: -4.37319469
A9: 7 | B9: -65.70034438 | C9: 0.46875 | D9: 1.328125 | E9: 0.8984375 | F9: 7.77472494
A10: 8 | B10: -3.727100385 | C10: 0.46875 | D10: 0.8984375 | E10: 0.68359375 | F10: 7.343927484
A11: 9 | B11: 6.375362519 | C11: 0.68359375 | D11: 0.8984375 | E11: 0.791015625 | F11: 7.827727412
A12: 10 | B12: 2.344420005 | C12: 0.791015625 | D12: 0.8984375 | E12: 0.8447265625 | F12: 7.882549718
A13: 11 | B13: -0.3945215202 | C13: 0.791015625 | D13: 0.8447265625 | E13: 0.8178710938 | F13: 7.873515455
A14: 12 | B14: 1.043557758 | C14: 0.8178710938 | D14: 0.8447265625 | E14: 0.8312988281 | F14: 7.882859352
A15: 13 | B15: 0.3423452869 | C15: 0.8312988281 | D15: 0.8447265625 | E15: 0.8380126953 | F15: 7.883941292
A16: 14 | B16: -0.02154483369 | C16: 0.8312988281 | D16: 0.8380126953 | E16: 0.8346557617 | F16: 7.883705708
A17: 15 | B17: =-12*E16^5-12*E16^3+12 -> 0.1615251407 | C17: =IF(B17>0,E16,C16) -> 0.8346557617 | D17: =IF(B17<0,E16,D16) -> 0.8380126953 | E17: =(C17+D17)/2 -> 0.8363342285 | F17: 7.883900319
A18: 16 | B18: 0.07027273941 | C18: 0.8363342285 | D18: 0.8380126953 | E18: 0.8371734619 | F18: 7.88394007
A19: 17 | B19: 0.02443476952 | C19: 0.8371734619 | D19: 0.8380126953 | E19: 0.8375930786 | F19: 7.883945505
A20: 18 | B20: 0.001462693391 | C20: 0.8375930786 | D20: 0.8380126953 | E20: 0.837802887 | F20: 7.883944605
A21: 19 | B21: -0.01003663611 | C21: 0.8375930786 | D21: 0.837802887 | E21: 0.8376979828 | F21: 7.883945357
A22: 20 | B22: -0.004285863187 | C22: 0.8375930786 | D22: 0.8376979828 | E22: 0.8376455307 | F22: 7.883945506
A23: 21 | B23: -0.001411307896 | C23: 0.8375930786 | D23: 0.8376455307 | E23: 0.8376193047 | F23: 7.883945524
A24: 22 | B24: 2.576199269e-05 | C24: 0.8376193047 | D24: 0.8376455307 | E24: 0.8376324177 | F24: 7.88394552
A25: 23 | B25: -0.0006927556396 | C25: 0.8376193047 | D25: 0.8376324177 | E25: 0.8376258612 | F25: 7.883945523
A26: 24 | B26: -0.0003334924956 | C26: 0.8376193047 | D26: 0.8376258612 | E26: 0.8376225829 | F26: 7.883945524
A27: 25 | B27: -0.0001538641695 | C27: 0.8376193047 | D27: 0.8376225829 | E27: 0.8376209438 | F27: 7.883945524
A28: 26 | B28: -6.405081789e-05 | C28: 0.8376193047 | D28: 0.8376209438 | E28: 0.8376201242 | F28: 7.883945524

Sheet Lieberman 1.2
A1: f(x)=-0,25x^4+x^3-2x^2+2x | C1: f'(x) = -x^3+3x^2-4x+2
A2: Iteração | B2: df(x)/dx | C2: x inf | D2: x sup | E2: novo x | F2: f(x)
A3: 1 | C3: -100 | D3: 100 | E3: =(C3+D3)/2 -> 0 | F3: =-0.25*E3^4+E3^3-2*E3^2+2*E3 -> 0
A4: 2 | B4: =-E3^3+3*E3^2-4*E3+2 -> 2 | C4: =IF(B4>0,E3,C3) -> 0 | D4: =IF(B4<0,E3,D3) -> 100 | E4: =(C4+D4)/2 -> 50 | F4: =-0.25*E4^4+E4^3-2*E4^2+2*E4 -> -1442400 | G4: =IF(D4-C4<0.02,"pare","") -> 
A5: 3 | B5: =-E4^3+3*E4^2-4*E4+2 -> -117698 | C5: =IF(B5>0,E4,C4) -> 0 | D5: =IF(B5<0,E4,D4) -> 50 | E5: =(C5+D5)/2 -> 25 | F5: =-0.25*E5^4+E5^3-2*E5^2+2*E5 -> -83231.25 | G5: =IF(D5-C5<0.02,"pare","") -> 
A6: 4 | B6: -13848 | C6: 0 | D6: 25 | E6: 12.5 | F6: -4437.890625
A7: 5 | B7: -1532.375 | C7: 0 | D7: 12.5 | E7: 6.25 | F7: -202.9541016
A8: 6 | B8: -149.953125 | C8: 0 | D8: 6.25 | E8: 3.125 | F8: -6.605529785
A9: 7 | B9: -11.72070312 | C9: 0 | D9: 3.125 | E9: 1.5625 | F9: 0.5667686462
A10: 8 | B10: -0.7404785156 | C10: 0 | D10: 1.5625 | E10: 0.78125 | F10: 0.7255017757
A11: 9 | B11: 0.2292175293 | C11: 0.78125 | D11: 1.5625 | E11: 1.171875 | F11: 0.7350113243
A12: 10 | B12: -0.1769523621 | C12: 0.78125 | D12: 1.171875 | E12: 0.9765625 | F12: 0.7497252664
A13: 11 | B13: 0.0234503746 | C13: 0.9765625 | D13: 1.171875 | E13: 1.07421875 | F13: 0.7472382029
A14: 12 | B14: -0.07462757826 | C14: 0.9765625 | D14: 1.07421875 | E14: 1.025390625 | F14: 0.7496775542
A15: 13 | B15: -0.02540699393 | C15: 0.9765625 | D15: 1.025390625 | E15: 1.000976562 | F15: 0.7499995232
A16: 14 | B16: -0.0009765634313 | C16: 0.9765625 | D16: 1.000976562 | E16: 0.9887695312 | F16: 0.7499369343
A17: 15 | B17: 0.01123188518 | C17: 0.9887695312 | D17: 1.000976562 | E17: 0.9948730469 | F17: 0.749986857 | G17: pare
A18: 16 | B18: 0.00512708789 | C18: 0.9948730469 | D18: 1.000976562 | E18: 0.9979248047 | F18: 0.7499978468 | G18: pare
A19: 17 | B19: 0.002075204249 | C19: 0.9979248047 | D19: 1.000976562 | E19: 0.9994506836 | F19: 0.7499998491 | G19: =IF(D19-C19<0.02,"pare","") -> pare
A20: 18 | B20: 0.000549316572 | C20: 0.9994506836 | D20: 1.000976562 | E20: 1.000213623 | F20: 0.7499999772 | G20: pare
A21: 19 | B21: -0.0002136230566 | C21: 0.9994506836 | D21: 1.000213623 | E21: 0.9998321533 | F21: 0.7499999859 | G21: pare
A22: 20 | B22: 0.0001678466844 | C22: 0.9998321533 | D22: 1.000213623 | E22: 1.000022888 | F22: 0.7499999997 | G22: pare
A23: 21 | B23: -2.288818361e-05 | C23: 0.9998321533 | D23: 1.000022888 | E23: 0.9999275208 | F23: 0.7499999974 | G23: pare
A24: 22 | B24: 7.247924843e-05 | C24: 0.9999275208 | D24: 1.000022888 | E24: 0.9999752045 | F24: 0.7499999997 | G24: pare
A25: 23 | B25: 2.479553224e-05 | C25: 0.9999752045 | D25: 1.000022888 | E25: 0.9999990463 | F25: 0.75
A26: 24 | B26: 9.536743164e-07 | C26: 0.9999990463 | D26: 1.000022888 | E26: 1.000010967 | F26: 0.7499999999
A27: 25 | B27: -1.096725464e-05 | C27: 0.9999990463 | D27: 1.000010967 | E27: 1.000005007 | F27: 0.75
A28: 26 | B28: -5.006790161e-06 | C28: 0.9999990463 | D28: 1.000005007 | E28: 1.000002027 | F28: 0.75
